Cogmind - Beta 13 X1 @@@ ROGUE MODE // 2023.08.18 @ 18:37:57 Player: VR-DUX Result: Self-destructed Performance ------------- Evolutions (1) 500 Regions Visited (4) 800 Robots Destroyed (22) 110 Value Destroyed (437) 437 Prototype IDs (0) 0 Alien Tech Used (0) 0 Bonus (133) 133 TOTAL SCORE: 1980 Bonus ------- Follower Combat Kills 133 Cogmind --------- Core Integrity 400/400 Matter 290/300 Energy 125/125 System Corruption 0% Temperature Cool (0) Movement Treading (160) Location -9/Storage Parts ------- > --- POWER (1) -------- Light Ion Engine > --- PROPULSION (3) --- Light Treads Light Treads Light Treads > --- UTILITY (3) ------ Large Storage Unit Structural Scanner Propulsion Shielding > --- WEAPON (2) ------- EM Pulse Gun Heavy Assault Rifle > --- INVENTORY (15) --- Light Nuclear Core Light Treads Light Treads Cooling System Medium Storage Unit Huge Storage Unit Propulsion Shielding Propulsion Shielding Hardened Light Armor Plating Spread Laser Pulse Rifle Beam Cannon Grenade Launcher Mini Grenade Launcher Heavy Flail Peak State ------------ > --- POWER ------------ Light Ion Engine > --- PROPULSION ------- Light Treads Light Treads Light Treads > --- UTILITY ---------- Huge Storage Unit Structural Scanner Propulsion Shielding > --- WEAPON ----------- EM Pulse Gun Heavy Assault Rifle > --- INVENTORY -------- Light Nuclear Core Light Treads Light Treads Cooling System Medium Storage Unit Large Storage Unit Propulsion Shielding Propulsion Shielding Hardened Light Armor Plating Pulse Rifle Beam Cannon Grenade Launcher Mini Grenade Launcher Heavy Flail [Rating: 12] Favorites ----------- Power Light Ion Engine Engine Light Ion Engine Propulsion Light Treads Treads Light Treads Leg Aluminum Leg Utility Propulsion Shielding Device Structural Scanner Storage Large Storage Unit Protection Propulsion Shielding Weapon EM Pulse Gun Energy Gun EM Pulse Gun Energy Cannon Beam Cannon Ballistic Gun Assault Rifle Build | -11 -10 -10 -9 -9 ------- Run | Jun Mat Min Mat Sto Slots Evolved 2 | . . . 2 . Power . | . . . . . Propulsion 1 | . . . 1 . Utility 1 | . . . 1 . Weapon . | . . . . . Parts Attached 24 | . 14 4 6 . Power 3 | . 3 . . . Engine 3 | . 3 . . . Core . | . . . . . Reactor . | . . . . . Propulsion 5 | . 3 1 1 . Treads 5 | . 3 1 1 . Leg . | . . . . . Wheel . | . . . . . Hover . | . . . . . Flight . | . . . . . Utility 9 | . 6 . 3 . Device 2 | . 1 . 1 . Storage 5 | . 3 . 2 . Processor . | . . . . . Hackware . | . . . . . Protection 2 | . 2 . . . Artifact . | . . . . . Weapon 7 | . 2 3 2 . Energy Gun 3 | . 1 2 . . Energy Cannon 1 | . . . 1 . Ballistic Gun 3 | . 1 1 1 . Ballistic Cannon . | . . . . . Launcher . | . . . . . Special Weapon . | . . . . . Impact Weapon . | . . . . . Slashing Weapon . | . . . . . Piercing Weapon . | . . . . . Special Melee Weapon . | . . . . . Unidentified Prototypes . | . . . . . Parts Lost 2 | . 2 . . . Power . | . . . . . Propulsion 1 | . 1 . . . Utility . | . . . . . Weapon 1 | . 1 . . . Highest Loss Streak 2 | . 2 . . . To Critical Strikes . | . . . . . Average Slot Usage (%) 96 | . 98 99 89 . Engine 13 | . 14 14 11 . Treads 25 | . 24 27 28 . Leg 2 | . 3 . . . Device 2 | . 1 . 5 . Storage 13 | . 13 14 11 . Protection 11 | . 11 14 11 . Energy Gun 14 | . 15 14 11 . Ballistic Gun 12 | . 12 13 11 . Naked Turns . | . . . . . Heaviest Build 90 | 14 28 29 90 . Greatest Support 60 | 20 40 40 60 . Greatest Overweight (x) 1 | . 1 . 1 . Average Overweight (x) . | . . . . . Largest Inventory Capacity 25 | 8 15 15 25 . Average Capacity 13 | 8 11 15 20 . Most Carried 15 | 6 15 15 15 . Average Carried 11 | 6 9 14 14 . Final Capacity 15 | 8 15 15 15 15 Final Carried 15 | 6 15 15 15 15 Class Distribution -------------------- 100% | Mutant Dominant Class ---------------- Mutant | -10/Materials Mutant | -10/Mines Mutant | -9/Materials Mutant | -9/Storage Resources | -11 -10 -10 -9 -9 ----------- Run | Jun Mat Min Mat Sto Matter Collected 513 | 200 169 40 104 . Remotely . | . . . . . Salvage Created 950 | 97 708 50 95 . Parts 50 | . 42 3 5 . Haulers Intercepted 3 | . 2 . 1 . Recyclers Shooed . | . . . . . Parts Field Recycled . | . . . . . Retrieved Matter . | . . . . . Parts Self-Destructed . | . . . . . Prevented . | . . . . . Kills | -11 -10 -10 -9 -9 ------- Run | Jun Mat Min Mat Sto Combat Hostiles Destroyed 11 | . 9 1 1 . Guns 11 | . 9 1 1 . Classes Destroyed 8 | 1 7 . . . Worker 1 | . 1 . . . Builder 1 | . 1 . . . Tunneler 1 | . 1 . . . Hauler 3 | . 2 . 1 . Recycler 3 | 1 2 . . . Watcher 2 | . 2 . . . Swarmer 3 | . 3 . . . Grunt 8 | . 6 1 1 . Best Kill Streak 4 | 1 4 1 2 . Combat Bots Only 3 | . 3 1 1 . Max Kills in Single Turn 2 | 1 2 1 1 . Gunslinging . | . . . . . Exploded . | . . . . . Melee . | . . . . . Uniques/NPCs Destroyed . | . . . . . Combat | -11 -10 -10 -9 -9 -------- Run | Jun Mat Min Mat Sto Damage Taken 831 | . 576 199 56 . Core 114 | . 70 44 . . Absorbed by Shields . | . . . . . Redirected to Shielding 60 | . 26 22 12 . Regen/Repaired (Parts) 175 | . 175 . . . Core Remaining (%) 77 | 100 . 54 . . Volleys Fired 116 | 1 97 10 8 . Largest 2 | 2 2 1 2 . Hottest 90 | 90 90 40 60 . Shots Fired 129 | 2 108 10 9 . Gun 129 | 2 108 10 9 . Cannon . | . . . . . Launcher . | . . . . . Special . | . . . . . Kinetic 31 | . 23 . 8 . Thermal 12 | 1 11 . . . Explosive . | . . . . . Electromagnetic 86 | 1 74 10 1 . Robot Hit Streak 9 | 2 9 4 3 . Robot Miss Streak 5 | . 5 3 2 . Penetration Max . | . . . . . Secondary Targets . | . . . . . Shots Hit Robots 69 | 2 55 7 5 . Core Hits 41 | 2 30 4 5 . Critical Kills . | . . . . . Critical Parts Destroyed . | . . . . . Critical Strikes 2 | 1 1 . . . Burn 1 | 1 . . . . Corrupt 1 | . 1 . . . Melee Attacks . | . . . . . Impact . | . . . . . Slashing . | . . . . . Piercing . | . . . . . Sneak Attacks . | . . . . . Combat Hostiles . | . . . . . Follow-up Attacks . | . . . . . Damage Inflicted 1255 | 24 1026 111 94 . Guns 1019 | 24 790 111 94 . Cannons . | . . . . . Explosions 224 | . 224 . . . Melee . | . . . . . Ramming 12 | . 12 . . . Kinetic 230 | . 136 . 94 . Thermal 301 | 12 289 . . . Explosive . | . . . . . Electromagnetic 712 | 12 589 111 . . Impact . | . . . . . Slashing . | . . . . . Piercing . | . . . . . Highest Corruption . | . . . . . Average Corruption . | . . . . . Corruption Purged . | . . . . . Corruption Blocked . | . . . . . Overload Shots . | . . . . . Overflow Damage 9 | . 9 . . . Projectiles . | . . . . . Explosions 9 | . 9 . . . Melee . | . . . . . Knockbacks . | . . . . . Impact . | . . . . . Kinetic . | . . . . . Secondary . | . . . . . Self-Inflicted Damage 51 | . 51 . . . Shots 1 | . 1 . . . Rammed 1 | . 1 . . . Targets Rammed 1 | . 1 . . . Kicked . | . . . . . Crushed . | . . . . . Highest Temperature 189 | 30 189 102 6 . Average Temperature 57 | 18 58 62 6 . Received Heat Transfer 354 | . 216 102 36 . Siege Activations . | . . . . . Robots Corrupted . | . . . . . Combat Hostiles . | . . . . . Parts Fried 3 | . 3 . . . Impact Corruptions . | . . . . . Robots Melted . | . . . . . Combat Hostiles . | . . . . . Parts Melted . | . . . . . Heat Transferred 546 | 111 435 . . . Parts Sabotaged . | . . . . . Parts Stolen . | . . . . . Parts Stripped . | . . . . . Power Chain Reactions 3 | . 3 . . . Missiles Intercepted . | . . . . . Alert | -11 -10 -10 -9 -9 ------- Run | Jun Mat Min Mat Sto Peak Influence 229 | 5 229 41 133 . Initial 21 | . 3 21 15 . Average 93 | 5 119 39 47 . Maximum Alert Level 1 | . 1 . . . Low Security (%) 92 | 100 88 100 100 . Level 1 7 | . 11 . . . Level 2 . | . . . . . Level 3 . | . . . . . Level 4 . | . . . . . Level 5 . | . . . . . High Security . | . . . . . Max Security . | . . . . . Squads Dispatched 4 | . 2 . 2 . Investigation 2 | . 1 . 1 . Extermination . | . . . . . Reinforcement 2 | . 1 . 1 . Assault . | . . . . . Garrison . | . . . . . Intercept . | . . . . . Searches Triggered . | . . . . . Construction Impeded . | . . . . . Haulers Reinforced . | . . . . . Active Scanning Responses . | . . . . . Cargo Convoy Interrupts . | . . . . . Stealth | -11 -10 -10 -9 -9 --------- Run | Jun Mat Min Mat Sto Distress Signals 4 | . 2 . 2 . Communications Jammed . | . . . . . Distress Signals . | . . . . . Times Spotted 38 | . 23 2 13 . Peak Tracking Total 5 | . 5 2 3 . Tactical Retreats 2 | . 2 . . . Traps | -11 -10 -10 -9 -9 ------- Run | Jun Mat Min Mat Sto Traps Triggered 1 | . 1 . . . Indirectly . | . . . . . Trap Hack Attempts . | . . . . . Triggered . | . . . . . Disarmed . | . . . . . Reprogrammed . | . . . . . Reused . | . . . . . Traps Extracted . | . . . . . Installed . | . . . . . Triggered . | . . . . . Machines | -11 -10 -10 -9 -9 ---------- Run | Jun Mat Min Mat Sto Machines Disabled 4 | . 3 . 1 . Max in Single Turn 1 | . 1 . 1 . Machines Repaired . | . . . . . Machines Sabotaged . | . . . . . Overloaded Fab Kills . | . . . . . Hacking | -11 -10 -10 -9 -9 --------- Run | Jun Mat Min Mat Sto Machines Accessed 10 | . 7 1 2 . Terminals 5 | . 4 . 1 . Fabricators . | . . . . . Repair Stations 1 | . 1 . . . Recycling Units 3 | . 2 . 1 . Scanalyzers . | . . . . . Garrison Access . | . . . . . Total Hacks 34 | . 27 1 6 . Successful 14 | . 9 1 4 . Failed 20 | . 18 . 2 . Catastrophic 3 | . 3 . . . Database Lockouts . | . . . . . Manual 19 | . 14 . 5 . Terminals 18 | . 14 . 4 . Fabricators . | . . . . . Repair Stations 8 | . 8 . . . Recycling Units 7 | . 5 . 2 . Scanalyzers . | . . . . . Garrison Access . | . . . . . Terminal Hacks 7 | . 3 1 3 . Robot Analysis 4 | . 3 . 1 . Open Door 1 | . . 1 . . Branch Access Points 1 | . . . 1 . Unreport Threat 1 | . . . 1 . Fabricator Hacks . | . . . . . Repair Station Hacks 4 | . 4 . . . Scan Component 2 | . 2 . . . Repair 2 | . 2 . . . Recycling Unit Hacks 2 | . 1 . 1 . Retrieve Components 2 | . 1 . 1 . Scanalyzer . | . . . . . Garrison Access Hacks . | . . . . . Unauthorized Hacks 1 | . 1 . . . Terminals 1 | . 1 . . . Assimilate 1 | . 1 . . . Fabricators . | . . . . . Repair Stations . | . . . . . Recycling Units . | . . . . . Scanalyzers . | . . . . . Garrison Access . | . . . . . Data Cores Recovered . | . . . . . Used . | . . . . . Hacking Detections 9 | . 7 . 2 . Full Trace Events 3 | . 2 . 1 . Feedback Events . | . . . . . Feedback Blocked . | . . . . . Robot Schematics Acquired . | . . . . . Robots Built . | . . . . . Authchips . | . . . . . Time . | . . . . . Total Robot Build Rating . | . . . . . Part Schematics Acquired . | . . . . . Parts Built . | . . . . . Authchips . | . . . . . Time . | . . . . . Total Part Build Rating . | . . . . . Parts Repaired 2 | . 2 . . . Time 52 | . 52 . . . Parts Recycled . | . . . . . Recycled Matter . | . . . . . Retrieved Matter . | . . . . . Retrieved Components 20 | . 10 . 10 . Parts Scanalyzed . | . . . . . Part Schematics Acquired . | . . . . . Parts Damaged . | . . . . . Bothacking | -11 -10 -10 -9 -9 ------------ Run | Jun Mat Min Mat Sto Used RIF Installer . | . . . . . Robots Hacked . | . . . . . Non-combat . | . . . . . Combat . | . . . . . Robot Hacks Applied . | . . . . . Relay Couplers Released . | . . . . . Fabnet Peak Effective % . | . . . . . Robots Rewired . | . . . . . Allies Hacked . | . . . . . Hacks Repelled . | . . . . . Allies | -11 -10 -10 -9 -9 -------- Run | Jun Mat Min Mat Sto Total Allies 5 | . . 5 . . Largest Group 5 | . . 5 4 . Highest-Rated Group 86 | . . 86 78 . Highest-Rated Ally 31 | . . 31 31 . Total Orders . | . . . . . Ally Attacks 30 | . . . 30 . Total Damage 356 | . . . 356 . Kills 7 | . . . 7 . Allies Corrupted . | . . . . . Allies Melted . | . . . . . Intel | -11 -10 -10 -9 -9 ------- Run | Jun Mat Min Mat Sto Robot Analysis Total 4 | . 3 . 1 . Derelict Logs Recovered . | . . . . . Drone Launches . | . . . . . Drone Recoveries . | . . . . . Exploration | -11 -10 -10 -9 -9 ------------- Run | Jun Mat Min Mat Sto Turns Passed 2071 | 15 1345 298 413 . Spaces Moved 996 | 11 633 163 189 . Core . | . . . . . Treads 933 | . 581 163 189 . Legs 63 | 11 52 . . . Wheels . | . . . . . Hover . | . . . . . Flight . | . . . . . Fastest Speed 120 | 120 120 160 160 . Average Speed 163 | 120 156 160 190 . Slowest Speed 240 | 120 190 160 240 . Overloaded Moves . | . . . . . Propulsion Burnouts . | . . . . . Robots Hopped . | . . . . . Cave-ins Triggered . | . . . . . Exploration Rate (%) 30 | 2 93 29 28 2 Regions Visited 4 Branch Regions 2 Pre-discovered Areas . | . . . . . Known Exits Taken 1 | . . . 1 . Unknown Exits Taken 3 | 1 1 1 . . Scrap Searched 1 | . . 1 . . Spaces Dug . | . . . . . Terrain Destroyed 11 | . 11 . . . Melee . | . . . . . Projectile . | . . . . . AOE 11 | . 11 . . . Terrain Rammed . | . . . . . Walls Destroyed . | . . . . . Machines Disabled . | . . . . . Actions | -11 -10 -10 -9 -9 --------- Run | Jun Mat Min Mat Sto Total 1312 | 11 878 191 232 . Wait 132 | . 100 8 24 . Move 992 | 10 632 162 188 . Hop . | . . . . . Pick Up 29 | . 22 3 4 . Fast Attach 8 | . 7 1 . . Attach 10 | . 5 2 3 . Detach 1 | . 1 . . . Swap 6 | . 2 1 3 . Drop 17 | . 11 4 2 . Fire 116 | 1 97 10 8 . Melee . | . . . . . Ram . | . . . . . Kick . | . . . . . Crush 1 | . 1 . . . Escape Stasis . | . . . . . Rewire . | . . . . . Trap . | . . . . . Miscellaneous . | . . . . . Route ------- -11/Junkyard -10/Materials (discovered 5 exits: *Mat x3 / *Min x2) -10/Mines (discovered 2 exits: *Mat / [*Sub]) -9/Materials (discovered 3 exits: Min x2 / *Sto) -9/Storage History --------- Turn | Location | Event 4 | -11/Junkyard | Discovered new exit (range 3) 16 | -11/Junkyard | Entered Materials 306 | -10/Materials | Build established: Mutant 338 | -10/Materials | Discovered new exit (range 6) 488 | -10/Materials | Discovered new exit (range 16) 783 | -10/Materials | Discovered new exit (range 16) 1094 | -10/Materials | Repaired Lgt. Treads 1122 | -10/Materials | Repaired Lrg. Storage Unit 1194 | -10/Materials | Discovered new exit (range 6) 1210 | -10/Materials | Discovered new exit (range 16) 1361 | -10/Materials | Entered Mines 1440 | -10/Mines | Discovered new exit (range 8) 1488 | -10/Mines | Discovered new exit (range 9) 1509 | -10/Mines | Assisted by bots powering up and referring to "LRC-V3" 1561 | -10/Mines | Met a Derelict who couldn't figure out how to use a Trap Extractor 1659 | -10/Mines | Entered Materials 1659 | -9/Materials | Accompanied by 4 allies 1659 | -9/Materials | Evolved 2 slots: Propulsion x1, Utility x1 1664 | -9/Materials | Led the pair of lost Derelicts to an unsafe place 1705 | -9/Materials | Identified exit to Mines 1705 | -9/Materials | Identified exit to Storage 2072 | -9/Materials | Entered Storage 2072 | -9/Storage | Accompanied by 1 ally 2072 | -9/Storage | Self-destructed Last Messages --------------- 01967_ R-06 Scavenger collects Med. Storage Unit. 01969_ K-01 Serf collects debris. 01973_ K-01 Serf cleans the Processing Tank. 01973_ R-06 Scavenger collects Aluminum Leg. 01979_ YE-3VC(g) triggered Alarm Trap. 01979_ An alarm sounds. 01979_ ALERT: Alarm triggered, dispatching investigation squad. 01986_ K-01 Serf cleans the Processing Tank. 01996_ G-34 Mercenary destroyed. 02012_ R-06 Scavenger collects Heat Sink. 02036_ O-16 Technician: "IFF HANDSHAKE FAILED. SECURING TERMINAL." 02041_ ALERT: Hostiles spotted, dispatching reinforcements to Terminal M007. 02050_ W-16 Scout suffers critical hit (Burn). 02053_ G-34 Mercenary destroyed. 02057_ R-06 Scavenger collects Heat Sink. 02059_ R-06 Scavenger collects Sml. Laser. 02060_ R-06 Scavenger collects Aluminum Leg. 02071_ Acquired Spread Laser. LOCATION=STORAGE GOAL=ESCAPE Map ----- +----------------------------------------------------+ | | | | | | | | | | | | | | | | | | | | | | | | | | | | | | | | | | | | | ????????????????????????????????? | | ????????????????????????????????? | | ????????????????????????????????? | | ????????????????????????????????? | | ?????#############???###????????? | | ?????############ ##????????? | | ?????## ##????????? | | ?????## @ g ##????????? | | ?????## ##????????? | | ?????#######+#### ##????????? | | ?????## ##???###????????? | | ????????????????????????????????? | | ????????????????????????????????? | | ????????????????????????????????? | | ????????????????????????????????? | | ????????????????????????????????? | | ????????????????????????????????? | | ????????????????????????????????? | | ????????????????????????????????? | | ????????????????????????????????? | | ????????????????????????????????? | | ????????????????????????????????? | | ????????????????????????????????? | | ????????????????????????????????? | | ????????????????????????????????? | | ????????????????????????????????? | | ????????????????????????????????? | | ????????????????????????????????? | | ????????????????????????????????? | | ????????????????????????????????? | | ????????????????????????????????? | | ????????????????????????????????? | +----------------------------------------------------+ Best States ------------- Heat Dissipation 28 Energy Generation 10 Energy Capacity 250 Matter Stores 300 Matter Capacity 300 Sight Range 16 Terrain Scan Density 10 Propulsion Shielding 33 Evasion (%) 55 Recoil Reduction 3 Item Schematics ----------------- None Robot Schematics ------------------ None Fabricated ------------ Nothing Alien Tech Used ----------------- None Achievements -------------- None Challenges ------------ None Game ------ Seed ThermicTargetShearcannon Manual? 0 Play Time 00:21:13 Cumulative 53.7 hours Start 2023.08.18 @ 18:15:52 End 2023.08.18 @ 18:37:57 Sessions 1 Manual Loads 0 Difficulty Rogue Special Mode None Game No. 34 Rogue 34 Adventurer 0 Explorer 0 Win Type - Total 0 Types 0/0/0/0/0/0/0/0/0 Lore% 31 Gallery% 27 Achievement% 35 Wizard Run 0 Options --------- ASCII 0 Keyboard 0 Movement Mouse Keybinds 0 Fullscreen 1 Font 16/SmallcapsGlow Map View 84x54 Tactical HUD 1 Map Filters NONE Filters NONE Steam 1 RUN: 4f4c1b7f-dcd0-4532-87f1-17083e26f71e